fUST/lending_fUST_20250910
["ID","MTS","AMOUNT","RATE_DAILY","PERIOD"]
[384481609,1757436641932,-480.0,0.00013698,2]
[384481611,1757436641941,-1794.37,0.00013698,2]
[384481613,1757436641950,-526.36,0.00013698,2]
[384481615,1757436641960,-974.88,0.00013698,2]
[384481617,1757436641970,-481.2462477,0.00013698,2]
[384481619,1757436641980,-480.0,0.00013698,2]
[384481621,1757436641989,-671.63,0.00013698,2]
[384481623,1757436641998,-480.0,0.00013698,2]
[384481625,1757436642008,-531.25,0.00013698,2]
[384481627,1757436642017,-480.0,0.00013698,2]
[384481629,1757436642027,-480.0,0.00013698,2]
[384481631,1757436642036,-480.0,0.00013698,2]
[384481633,1757436642045,-480.0,0.00013698,2]
[384481635,1757436642055,-480.0,0.00013698,2]
[384481637,1757436642064,-851.46,0.00013698,2]
[384481639,1757436642074,-480.0,0.00013698,2]
[384481641,1757436642084,-480.0,0.00013698,2]
[384481643,1757436642094,-480.0,0.00013698,2]
[384481645,1757436642103,-480.0,0.00013698,2]
[384481647,1757436642113,-480.0,0.00013698,2]
[384481650,1757436642123,-480.0,0.00013698,2]
[384481651,1757436642132,-480.0,0.00013698,2]
[384481653,1757436642141,-480.0,0.00013698,2]
[384481655,1757436642151,-480.0,0.00013698,2]
[384481657,1757436642160,-542.26,0.00013698,2]
[384481659,1757436642170,-480.0,0.00013698,2]
[384481661,1757436642179,-480.0,0.00013698,2]
[384481663,1757436642189,-480.0,0.00013698,2]
[384481666,1757436642199,-480.0,0.00013698,2]
[384481668,1757436642209,-500.69,0.00013698,2]
[384481670,1757436642220,-480.0,0.00013698,2]
[384481672,1757436642229,-2646.29,0.00013698,2]
[384481674,1757436642238,-480.0,0.00013698,2]
[384481676,1757436642247,-480.0,0.00013698,2]
[384481677,1757436642256,-480.0,0.00013698,2]
[384481680,1757436642266,-480.0,0.00013698,2]
[384481681,1757436642275,-480.0,0.00013698,2]
[384481684,1757436642285,-480.0,0.00013698,2]
[384481686,1757436642295,-480.0,0.00013698,2]
[384481688,1757436642304,-480.0,0.00013698,2]
[384481690,1757436642313,-480.0,0.00013698,2]
[384481692,1757436642322,-480.0,0.00013698,2]
[384481694,1757436642332,-480.0,0.00013698,2]
[384481696,1757436642341,-480.0,0.00013698,2]
[384481698,1757436642350,-480.0,0.00013698,2]
[384481700,1757436642359,-480.0,0.00013698,2]
[384481702,1757436642368,-611.22,0.00013698,2]
[384481713,1757436642515,-2357.88,0.00013698,2]
[384481715,1757436642525,-623.59789019,0.00013698,2]
[384481717,1757436642534,-480.0,0.00013698,2]
[384481718,1757436642543,-480.0,0.00013698,2]
[384481720,1757436642552,-480.0,0.00013698,2]
[384481722,1757436642561,-1000.0,0.00013698,2]
[384481723,1757436642571,-480.0,0.00013698,2]
[384481725,1757436642580,-480.0,0.00013698,2]
[384481727,1757436642589,-480.0,0.00013698,2]
[384481728,1757436642598,-480.0,0.00013698,2]
[384481731,1757436642608,-480.0,0.00013698,2]
[384481734,1757436642617,-480.0,0.00013698,2]
[384481735,1757436642626,-480.0,0.00013698,2]
[384481737,1757436642636,-500.0,0.00013698,2]
[384481739,1757436642645,-500.0,0.00013698,2]
[384481740,1757436642654,-480.0,0.00013698,2]
[384481742,1757436642663,-500.0,0.00013698,2]
[384481744,1757436642672,-504.50079068,0.00013698,2]
[384481745,1757436642682,-989.6,0.00013698,2]
[384481747,1757436642690,-567.03,0.00013698,2]
[384481749,1757436642699,-480.0,0.00013698,2]
[384481750,1757436642708,-500.0,0.00013698,2]
[384481752,1757436642718,-500.0,0.00013698,2]
[384481754,1757436642727,-500.0,0.00013698,2]
[384481756,1757436642736,-500.0,0.00013698,2]
[384481758,1757436642746,-480.0,0.00013698,2]
[384481759,1757436642755,-500.0,0.00013698,2]
[384481761,1757436642764,-500.0,0.00013698,2]
[384481763,1757436642774,-500.0,0.00013698,2]
[384481764,1757436642783,-480.0,0.00013698,2]
[384481766,1757436642792,-500.0,0.00013698,2]
[384481768,1757436642802,-500.0,0.00013698,2]
[384481770,1757436642811,-500.0,0.00013698,2]
[384481771,1757436642820,-1186.86,0.00013698,2]
[384481773,1757436642830,-1629.14,0.00013698,2]
[384481775,1757436642840,-480.0,0.00013698,2]
[384481777,1757436642849,-480.0,0.00013698,2]
[384481778,1757436642859,-369.33630945,0.00013698,2]
[384481779,1757436642868,-768.79,0.00013698,2]
[384481780,1757436642877,-480.0,0.00013698,2]
[384481781,1757436642887,-480.0,0.00013698,2]
[384481782,1757436642896,-480.0,0.00013698,2]
[384481783,1757436642906,-480.0,0.00013698,2]
[384481784,1757436642915,-480.0,0.00013698,2]
[384481785,1757436642924,-480.0,0.00013698,2]
[384481786,1757436642942,-480.0,0.00013698,2]
[384481787,1757436642951,-480.0,0.00013698,2]
[384481788,1757436642961,-510.94,0.00013698,2]
[384481789,1757436642970,-480.0,0.00013698,2]
[384481790,1757436642979,-480.0,0.00013698,2]
[384481791,1757436642989,-480.0,0.00013698,2]
[384481792,1757436642998,-480.0,0.00013698,2]
[384481793,1757436643007,-480.0,0.00013698,2]
[384481794,1757436643016,-480.0,0.00013698,2]
[384481795,1757436643026,-480.0,0.00013698,2]
[384481796,1757436643035,-480.0,0.00013698,2]
[384481797,1757436643044,-982.26,0.00013698,2]
[384481798,1757436643054,-480.0,0.00013698,2]
[384481799,1757436643064,-480.0,0.00013698,2]
[384481800,1757436643076,-597.09,0.00013698,2]
[384481801,1757436643086,-480.0,0.00013698,2]
[384481802,1757436643096,-480.0,0.00013698,2]
[384481803,1757436643106,-1161.16,0.00013698,2]
[384481804,1757436643115,-2598.15,0.00013698,2]
[384481805,1757436643125,-500.0,0.00013698,2]
[384481806,1757436643135,-500.0,0.00013698,2]
[384481807,1757436643143,-1345.13,0.00013698,2]
[384481808,1757436643154,-537.39,0.00013698,2]
[384481809,1757436643163,-500.0,0.00013698,2]
[384481810,1757436643172,-500.0,0.00013698,2]
[384481811,1757436643181,-480.0,0.00013698,2]
[384481812,1757436643190,-480.0,0.00013698,2]
[384481813,1757436643200,-698.41,0.00013698,2]
[384481814,1757436643209,-480.0,0.00013698,2]
[384481815,1757436643219,-480.0,0.00013698,2]
[384481816,1757436643228,-480.0,0.00013698,2]
[384481817,1757436643243,-1978.04,0.00013698,2]
[384481818,1757436643253,-480.0,0.00013698,2]
[384481820,1757436643262,-963.32,0.00013698,2]
[384481821,1757436643271,-480.0,0.00013698,2]
[384481823,1757436643280,-480.0,0.00013698,2]
[384481825,1757436643289,-473.0918216,0.00013698,2]
[384481834,1757436643400,-1496.2381784,0.00013698,2]
[384481836,1757436643411,-480.0,0.00013698,2]
[384481838,1757436643420,-335.09476907,0.00013698,2]
[384481839,1757436643429,-480.0,0.00013698,2]
[384481841,1757436643442,-346.79652527,0.00013698,2]
[384481843,1757436643458,-134.69529484,0.00013698,2]
[384481845,1757436643468,-481.5968499,0.00013698,2]
[384481847,1757436643478,-480.0,0.00013698,2]
[384481849,1757436643488,-481.34972911,0.00013698,2]
[384481851,1757436643497,-8845.09,0.00013698,2]
[384481853,1757436643507,-480.0,0.00013698,2]
[384481855,1757436643516,-712.69,0.00013698,2]
[384481857,1757436643525,-480.0,0.00013698,2]
[384481859,1757436643535,-466.22389191,0.00013698,2]
[384481861,1757436643544,-480.0,0.00013698,2]
[384481863,1757436643553,-362.3505503,0.00013698,2]
[384481864,1757436643563,-480.0,0.00013698,2]
[384481865,1757436643572,-480.0,0.00013698,2]
[384481866,1757436643582,-482.30376197,0.00013698,2]
[384481867,1757436643591,-480.0,0.00013698,2]
[384481868,1757436643600,-480.0,0.00013698,2]
[384481869,1757436643610,-480.0,0.00013698,2]
[384481870,1757436643619,-480.0,0.00013698,2]
[384481871,1757436643629,-480.0,0.00013698,2]
[384481872,1757436643638,-5140.27,0.00013698,2]
[384481873,1757436643647,-480.0,0.00013698,2]
[384481874,1757436643657,-480.0,0.00013698,2]
[384481875,1757436643667,-480.0,0.00013698,2]
[384481876,1757436643676,-1173.14,0.00013698,2]
[384481877,1757436643685,-480.0,0.00013698,2]
[384481878,1757436643695,-480.0,0.00013698,2]
[384481879,1757436643705,-480.0,0.00013698,2]
[384481880,1757436643715,-480.0,0.00013698,2]
[384481881,1757436643724,-480.0,0.00013698,2]
[384481882,1757436643732,-480.0,0.00013698,2]
[384481883,1757436643742,-480.0,0.00013698,2]
[384481884,1757436643750,-480.0,0.00013698,2]
[384481885,1757436643759,-638.82,0.00013698,2]
[384481886,1757436643768,-480.0,0.00013698,2]
[384481887,1757436643777,-480.0,0.00013698,2]
[384481888,1757436643786,-480.0,0.00013698,2]
[384481889,1757436643796,-480.0,0.00013698,2]
[384481890,1757436643805,-480.0,0.00013698,2]
[384481891,1757436643814,-843.61,0.00013698,2]
[384481892,1757436643823,-830.35,0.00013698,2]
[384481893,1757436643832,-480.0,0.00013698,2]
[384481894,1757436643841,-480.0,0.00013698,2]
[384481895,1757436643850,-480.0,0.00013698,2]
[384481896,1757436643859,-481.68068924,0.00013698,2]
[384481897,1757436643869,-480.0,0.00013698,2]
[384481898,1757436643878,-480.0,0.00013698,2]
[384481899,1757436643887,-480.0,0.00013698,2]
[384481900,1757436643896,-480.0,0.00013698,2]
[384481901,1757436643905,-480.0,0.00013698,2]
[384481902,1757436643914,-480.0,0.00013698,2]
[384481903,1757436643923,-392.20297653,0.00013698,2]
[384481904,1757436643932,-703.13,0.00013698,2]
[384481905,1757436643941,-945.65,0.00013698,2]
[384481906,1757436643950,-500.0,0.00013698,2]
[384481907,1757436643960,-500.0,0.00013698,2]
[384481908,1757436643969,-500.0,0.00013698,2]
[384481909,1757436643978,-500.0,0.00013698,2]
[384481910,1757436643987,-480.0,0.00013698,2]
[384481911,1757436643997,-500.0,0.00013698,2]
[384481912,1757436644006,-500.0,0.00013698,2]
[384481913,1757436644015,-849.83,0.00013698,2]
[384481914,1757436644025,-600.49030019,0.00013698,2]
[384481915,1757436644034,-566.839916,0.00013699,2]
[384481916,1757436644043,-1110.221147,0.00013699,2]
[384481917,1757436644052,-530.79566296,0.00013783,2]
[384481918,1757436644062,-160.0,0.00013783,2]
[384481919,1757436644071,-203.28455737,0.00013783,2]
[384481920,1757436644080,-160.0,0.00013783,2]
[384481921,1757436644090,-417.15472785,0.00013783,2]
[384481922,1757436644101,-217.65034598,0.00013783,2]
[384481924,1757436644111,-846.80158213,0.00013783,2]
[384481926,1757436644122,-233.05759179,0.00013783,2]
[384481927,1757436644131,-160.0,0.00013783,2]
[384481928,1757436644141,-160.0,0.00013783,2]
[384481929,1757436644150,-160.0,0.00013783,2]
[384481930,1757436644160,-2792.38815853,0.00013869,2]
[384481931,1757436644175,-2642.50010243,0.00013869,2]
[384481932,1757436644185,-500.0,0.0001387,2]
[384481933,1757436644195,-474.01,0.000139,2]
[384481934,1757436644204,-976.0,0.00013929,2]
[384481935,1757436644214,-634.0,0.00013929,2]
[384481936,1757436644223,-2154.0,0.00013929,2]
[384481937,1757436644233,-300.0,0.0001396,2]
[384481938,1757436644242,-300.0,0.0001396,2]
[384481939,1757436644252,-300.0,0.0001396,2]
[384481940,1757436644261,-300.0,0.0001396,2]
[384481941,1757436644271,-300.0,0.0001396,2]
[384481942,1757436644280,-300.0,0.0001396,2]
[384481943,1757436644289,-300.0,0.0001396,2]
[384481944,1757436644298,-300.0,0.0001396,2]
[384481945,1757436644307,-300.0,0.0001396,2]
[384481946,1757436644317,-300.0,0.0001396,2]
[384481947,1757436644326,-300.0,0.0001396,2]
[384481948,1757436644335,-109.11036901,0.0001396,2]
[384481951,1757436646492,-7529.68180801,0.00013551,2]
[384481952,1757436646504,-8700.04297355,0.00013551,2]
[384481953,1757436646513,-278.76228031,0.00013698,2]
[384481954,1757436646547,-3873.41771969,0.00013698,2]
[384481955,1757436646556,-480.0,0.00013698,2]
[384481956,1757436646566,-190.88963099,0.0001396,2]
[384481957,1757436646576,-300.0,0.0001396,2]
[384481958,1757436646585,-300.0,0.0001396,2]
[384481959,1757436646595,-300.0,0.0001396,2]
[384481960,1757436646604,-600.0,0.0001396,2]
[384481961,1757436646614,-500.0,0.00013968,2]
[384481962,1757436646623,-5688.25816507,0.00013969,2]
[384483066,1757436684491,1000.0,0.00018582,20]
[384483068,1757437047225,384.13,0.00027397,120]
[384483071,1757437104182,-300.0,0.00013694,2]
[384483072,1757437104213,-1200.0,0.00013695,2]
[384483073,1757437104241,-501.84830462,0.00013695,2]
[384483074,1757437104270,-400.74905071,0.00013695,2]
[384483075,1757437104299,-750.60377913,0.00013695,2]
[384483076,1757437104327,-500.0,0.00013695,2]
[384483077,1757437104357,-500.0,0.00013695,2]
[384483078,1757437104384,-500.0,0.00013695,2]
[384483079,1757437104411,-193.60773108,0.00013695,2]
[384483080,1757437104740,-306.39226892,0.00013695,2]
[384483081,1757437104768,-560.47959227,0.00013695,2]
[384483082,1757437104796,-500.0,0.00013695,2]
[384483083,1757437104823,-250.0,0.00013695,2]
[384483084,1757437104852,-750.60377913,0.00013695,2]
[384483085,1757437104881,-750.60377913,0.00013695,2]
[384483086,1757437104912,-242.72364193,0.00013695,2]
[384483087,1757437104943,-500.0,0.00013695,2]
[384483088,1757437104974,-560.72473487,0.00013695,2]
[384483089,1757437105004,-406.35062837,0.00013695,2]
[384483090,1757437105160,-344.25315076,0.00013695,2]
[384483091,1757437105190,-500.0,0.00013695,2]
[384483092,1757437105222,-750.60377913,0.00013695,2]
[384483093,1757437105256,-381.66696605,0.00013695,2]
[384483094,1757437105287,-750.60377913,0.00013695,2]
[384483095,1757437105317,-750.60377913,0.00013695,2]
[384483096,1757437105356,-267.97608734,0.00013695,2]
[384483097,1757437105389,-750.60377913,0.00013695,2]
[384483098,1757437105424,-256.78357953,0.00013695,2]
[384483099,1757437105484,-493.8201996,0.00013695,2]
[384483100,1757437105521,-750.60377913,0.00013695,2]
[384483101,1757437105559,-750.60377913,0.00013695,2]
[384483102,1757437105594,-750.60377913,0.00013695,2]
[384483103,1757437105627,-750.60377913,0.00013695,2]
[384483104,1757437105660,-750.60377913,0.00013695,2]
[384483105,1757437105697,-750.60377913,0.00013695,2]
[384483106,1757437105771,-750.60377913,0.00013695,2]
[384483107,1757437105801,-750.60377913,0.00013695,2]
[384483108,1757437105836,-750.60377913,0.00013695,2]
[384483109,1757437105871,-750.60377913,0.00013695,2]
[384483110,1757437105906,-750.60377913,0.00013695,2]
[384483111,1757437105943,-750.60377913,0.00013695,2]
[384483112,1757437105978,-242.16087131,0.00013695,2]
[384483113,1757437106195,-508.44290782,0.00013695,2]
[384483114,1757437106229,-750.60377913,0.00013695,2]
[384483115,1757437106264,-750.60377913,0.00013695,2]
[384483116,1757437106297,-750.60377913,0.00013695,2]
[384483117,1757437106332,-750.60377913,0.00013695,2]
[384483118,1757437106365,-750.60377913,0.00013695,2]
[384483119,1757437106400,-726.48261393,0.00013695,2]
[384483120,1757437106607,-24.1211652,0.00013695,2]
[384483121,1757437106642,-750.60377913,0.00013695,2]
[384483122,1757437106678,-750.60377913,0.00013695,2]
[384483123,1757437106711,-750.60377913,0.00013695,2]
[384483124,1757437106746,-750.60377913,0.00013695,2]
[384483125,1757437106781,-750.60377913,0.00013695,2]
[384483126,1757437106813,-750.60377913,0.00013695,2]
[384483127,1757437106846,-193.91854091,0.00013695,2]
[384483128,1757437107155,-556.68523822,0.00013695,2]
[384483129,1757437107186,-750.60377913,0.00013695,2]
[384483130,1757437107215,-750.60377913,0.00013695,2]
[384483131,1757437107244,-750.60377913,0.00013695,2]
[384483132,1757437107274,-750.60377913,0.00013695,2]
[384483133,1757437107305,-750.60377913,0.00013695,2]
[384483134,1757437107334,-629.99795313,0.00013695,2]
[384483135,1757437107520,-120.605826,0.00013695,2]
[384483136,1757437107553,-750.60377913,0.00013695,2]
[384483137,1757437107583,-750.60377913,0.00013695,2]
[384483138,1757437107612,-750.60377913,0.00013695,2]
[384483139,1757437107642,-750.60377913,0.00013695,2]
[384483140,1757437107672,-750.60377913,0.00013695,2]
[384483141,1757437107703,-750.60377913,0.00013695,2]
[384483142,1757437107735,-0.94921931,0.00013695,2]
[384483143,1757437107985,-749.65455982,0.00013695,2]
[384483144,1757437108017,-750.60377913,0.00013695,2]
[384483145,1757437108050,-750.60377913,0.00013695,2]
[384483146,1757437108082,-750.60377913,0.00013695,2]
[384483147,1757437108112,-165.25923225,0.00013695,2]
[384483148,1757437108142,-750.60377913,0.00013695,2]
[384483149,1757437108172,-750.60377913,0.00013695,2]
[384483150,1757437109561,-3.74915171,0.00013695,2]
[384483151,1757437109576,-664.14462456,0.00013695,2]
[384483154,1757437126330,438.08,0.00012329,2]
[384483155,1757437134172,1145.61315926,0.00013288,2]
[384483156,1757437157232,503.35,0.00012329,2]
[384483157,1757437157551,1145.61315926,0.00013288,2]
[384483162,1757437180625,769.88865138,0.00013288,2]
[384483163,1757437189900,4472.0738683,0.00012821,2]
[384483164,1757437198330,360.9,0.00012329,2]
[384483165,1757437212062,217.15517934,0.00013322,2]
[384483167,1757437300380,1145.61315926,0.00013288,2]
[384483168,1757437308599,1145.61315926,0.00013288,2]
[384483169,1757437468776,5924.3,0.00025,30]
[384483172,1757437613243,757.0084974,0.00012698,2]
[384484994,1757437831563,29071.85113547,0.00012698,2]
[384484995,1757437831592,14401.75886663,0.00012698,2]
[384485012,1757437832566,-500.0,0.00013536,2]
[384485013,1757437832576,-500.0,0.00013673,2]
[384485014,1757437832585,-7585.9585205,0.00013695,2]
[384485015,1757437832594,-300.0,0.00013695,2]
[384485016,1757437832604,-480.0,0.00013698,2]
[384485017,1757437832613,-480.0,0.00013698,2]
[384485018,1757437832622,-480.0,0.00013698,2]
[384485019,1757437832632,-269.98522242,0.00013698,2]
[384485020,1757437832641,-480.0,0.00013698,2]
[384485021,1757437832651,-480.0,0.00013698,2]
[384485022,1757437832661,-480.0,0.00013698,2]
[384485023,1757437832671,-480.0,0.00013698,2]
[384485024,1757437832680,-200.89850826,0.00013698,2]
[384485025,1757437832690,-480.0,0.00013698,2]
[384485026,1757437832699,-618.58,0.00013698,2]
[384485027,1757437832709,-480.0,0.00013698,2]
[384485028,1757437832718,-480.0,0.00013698,2]
[384485029,1757437832728,-480.0,0.00013698,2]
[384485030,1757437832738,-480.0,0.00013698,2]
[384485031,1757437832750,-480.0,0.00013698,2]
[384485032,1757437832759,-480.0,0.00013698,2]
[384485033,1757437832768,-480.0,0.00013698,2]
[384485034,1757437832777,-482.44762185,0.00013698,2]
[384485035,1757437832787,-480.0,0.00013698,2]
[384485036,1757437832796,-504.43,0.00013698,2]
[384485037,1757437832806,-480.0,0.00013698,2]
[384485038,1757437832815,-480.0,0.00013698,2]
[384485039,1757437832825,-480.0,0.00013698,2]
[384485040,1757437832835,-480.0,0.00013698,2]
[384485041,1757437832844,-480.0,0.00013698,2]
[384485042,1757437832853,-770.22,0.00013698,2]
[384485043,1757437832863,-778.64,0.00013698,2]
[384485044,1757437832872,-268.57145857,0.00013698,2]
[384485045,1757437832885,-288.52854143,0.00013698,2]
[384485046,1757437832895,-448.60365855,0.00013698,2]
[384485104,1757437838585,-5887.24120245,0.00013558,2]
[384485111,1757437838640,-1464.99976644,0.00013558,2]
[384485113,1757437838650,-500.0,0.00013695,2]
[384485115,1757437838662,-500.0,0.00013695,2]
[384485117,1757437838671,-312.28504579,0.00013695,2]
[384485119,1757437838682,-500.0,0.00013695,2]
[384485121,1757437838692,-500.0,0.00013695,2]
[384485123,1757437838701,-500.0,0.00013695,2]
[384485126,1757437838711,-500.0,0.00013695,2]
[384485128,1757437838720,-500.0,0.00013695,2]
[384485130,1757437838730,-500.0,0.00013695,2]
[384485132,1757437838740,-500.0,0.00013695,2]
[384485133,1757437838753,-500.0,0.00013695,2]
[384485135,1757437838763,-500.0,0.00013695,2]
[384485136,1757437838773,-500.0,0.00013695,2]
[384485138,1757437838783,-500.0,0.00013695,2]
[384485140,1757437838793,-500.0,0.00013695,2]
[384485142,1757437838803,-500.0,0.00013695,2]
[384485144,1757437838813,-281.52947507,0.00013695,2]
[384485146,1757437838825,-500.0,0.00013695,2]
[384485148,1757437838836,-500.0,0.00013695,2]
[384485150,1757437838846,-500.0,0.00013695,2]
[384485152,1757437838856,-500.0,0.00013695,2]
[384485154,1757437838867,-500.0,0.00013695,2]
[384485156,1757437838877,-500.0,0.00013695,2]
[384485158,1757437838887,-500.0,0.00013695,2]
[384485160,1757437838897,-500.0,0.00013695,2]
[384485162,1757437838908,-500.0,0.00013695,2]
[384485164,1757437838918,-500.0,0.00013695,2]
[384485166,1757437838928,-500.0,0.00013695,2]
[384485168,1757437838937,-500.0,0.00013695,2]
[384485170,1757437838947,-500.0,0.00013695,2]
[384485172,1757437838956,-500.0,0.00013695,2]
[384485174,1757437838966,-500.0,0.00013695,2]
[384485176,1757437838976,-500.0,0.00013695,2]
[384485178,1757437838986,-500.0,0.00013695,2]
[384485180,1757437838996,-500.0,0.00013695,2]
[384485182,1757437839005,-500.0,0.00013695,2]
[384485184,1757437839015,-500.0,0.00013695,2]
[384485186,1757437839025,-500.0,0.00013695,2]
[384485188,1757437839034,-500.0,0.00013695,2]
[384485190,1757437839044,-500.0,0.00013695,2]
[384485192,1757437839054,-500.0,0.00013695,2]
[384485194,1757437839064,-500.0,0.00013695,2]
[384485196,1757437839073,-500.0,0.00013695,2]
[384485198,1757437839084,-500.0,0.00013695,2]
[384485200,1757437839094,-500.0,0.00013695,2]
[384485202,1757437839104,-31.39634145,0.00013698,2]
[384485204,1757437839115,-480.0,0.00013698,2]
[384485206,1757437839126,-480.0,0.00013698,2]
[384485208,1757437839136,-534.72,0.00013698,2]
[384485210,1757437839146,-480.0,0.00013698,2]
[384485212,1757437839156,-480.0,0.00013698,2]
[384485214,1757437839166,-1340.32,0.00013698,2]
[384485216,1757437839175,-215.50172759,0.00013698,2]
[384485218,1757437839186,-480.0,0.00013698,2]
[384485220,1757437839196,-480.0,0.00013698,2]
[384485222,1757437839206,-407.9283612,0.00013698,2]
[384485224,1757437839217,-480.0,0.00013698,2]
[384485227,1757437839227,-480.0,0.00013698,2]
[384485229,1757437839237,-502.13,0.00013698,2]
[384485231,1757437839247,-480.0,0.00013698,2]
[384485233,1757437839256,-480.0,0.00013698,2]
[384485234,1757437839267,-480.0,0.00013698,2]
[384485236,1757437839276,-480.0,0.00013698,2]
[384485239,1757437839289,-480.0,0.00013698,2]
[384485241,1757437839300,-480.0,0.00013698,2]
[384485242,1757437839311,-480.0,0.00013698,2]
[384485245,1757437839322,-746.49,0.00013698,2]
[384485247,1757437839333,-480.0,0.00013698,2]
[384485248,1757437839343,-540.23919134,0.00013698,2]
[384485250,1757437839353,-480.0,0.00013698,2]
[384485252,1757437839364,-480.0,0.00013698,2]
[384485254,1757437839375,-480.0,0.00013698,2]
[384485256,1757437839384,-480.0,0.00013698,2]
[384485258,1757437839394,-633.06,0.00013698,2]
[384485260,1757437839403,-480.0,0.00013698,2]
[384485262,1757437839413,-480.0,0.00013698,2]
[384485264,1757437839423,-480.0,0.00013698,2]
[384485266,1757437839433,-480.0,0.00013698,2]
[384485268,1757437839443,-480.0,0.00013698,2]
[384485270,1757437839452,-480.0,0.00013698,2]
[384485272,1757437839462,-645.44,0.00013698,2]
[384485274,1757437839471,-480.0,0.00013698,2]
[384485276,1757437839481,-480.0,0.00013698,2]
[384485278,1757437839491,-480.0,0.00013698,2]
[384485280,1757437839500,-506.18,0.00013698,2]
[384485282,1757437839511,-1742.64,0.00013698,2]
[384485284,1757437839521,-480.0,0.00013698,2]
[384485286,1757437839530,-480.0,0.00013698,2]
[384485288,1757437839540,-480.0,0.00013698,2]
[384485290,1757437839550,-480.48107324,0.00013698,2]
[384485291,1757437839560,-815.99,0.00013698,2]
[384485293,1757437839570,-480.0,0.00013698,2]
[384485295,1757437839581,-480.0,0.00013698,2]
[384485297,1757437839591,-480.0,0.00013698,2]
[384485299,1757437839601,-480.0,0.00013698,2]
[384485301,1757437839611,-480.0,0.00013698,2]
[384485303,1757437839621,-480.0,0.00013698,2]
[384485305,1757437839631,-480.0,0.00013698,2]
[384485307,1757437839641,-480.0,0.00013698,2]
[384485309,1757437839651,-480.0,0.00013698,2]
[384485311,1757437839661,-480.0,0.00013698,2]
[384485313,1757437839670,-480.0,0.00013698,2]
[384485315,1757437839681,-480.0,0.00013698,2]
[384485317,1757437839691,-480.0,0.00013698,2]
[384485320,1757437839704,-480.0,0.00013698,2]
[384485321,1757437839716,-480.0,0.00013698,2]
[384485324,1757437839727,-480.0,0.00013698,2]
[384485326,1757437839738,-480.0,0.00013698,2]
[384485327,1757437839751,-480.0,0.00013698,2]
[384485330,1757437839762,-480.0,0.00013698,2]
[384485331,1757437839772,-480.0,0.00013698,2]
[384485333,1757437839783,-480.0,0.00013698,2]
[384485335,1757437839794,-669.3,0.00013698,2]
[384485337,1757437839803,-662.68,0.00013698,2]
[384485339,1757437839813,-379.42,0.00013698,2]
[384485341,1757437839823,-480.0,0.00013698,2]
[384485343,1757437839834,-480.0,0.00013698,2]
[384485345,1757437839843,-480.0,0.00013698,2]
[384485347,1757437839853,-480.0,0.00013698,2]
[384485349,1757437839863,-480.0,0.00013698,2]
[384485351,1757437839873,-427.97970449,0.00013698,2]
[384485353,1757437839882,-1719.61,0.00013698,2]
[384485355,1757437839891,-480.0,0.00013698,2]
[384485356,1757437839901,-480.0,0.00013698,2]
[384485358,1757437839910,-480.0,0.00013698,2]
[384485360,1757437839920,-480.0,0.00013698,2]